fUSD/lending_fUSD_20250811
["ID","MTS","AMOUNT","RATE_DAILY","PERIOD"]
[378520814,1754893838343,-218.84133942,0.00017808,2]
[378520816,1754893838352,-500.0,0.0001781,2]
[378520818,1754893838361,-151.0,0.0001784,2]
[378520820,1754893838370,-600.0,0.00017846,2]
[378520822,1754893838380,-546.22,0.00017846,2]
[378520824,1754893838389,-269.0,0.00017908,2]
[378520826,1754893838398,-269.0,0.00017926,2]
[378520828,1754893838407,-1164.90659479,0.00018,2]
[378520830,1754893838416,-401.0,0.00018014,2]
[378520832,1754893838426,-269.0,0.0001804,2]
[378520852,1754893838621,-300.0,0.0001804,2]
[378520855,1754893838638,-250.0,0.0001804,2]
[378520857,1754893838647,-553.51,0.00018046,2]
[378520859,1754893838657,-267.34097272,0.00018068,2]
[378520861,1754893838666,-1500.0,0.00018068,2]
[378520863,1754893838675,-1500.0,0.00018068,2]
[378520864,1754893838685,-1506.70352836,0.00018068,2]
[378520866,1754893838694,-269.0,0.00018079,2]
[378520868,1754893838705,-687.9,0.00018125,2]
[378520869,1754893838715,-420.0,0.00018137,2]
[378520871,1754893838725,-269.0,0.00018154,2]
[378520873,1754893838735,-431.25397426,0.00018156,2]
[378520875,1754893838745,-600.0,0.00018166,2]
[378520878,1754893838758,-204.41,0.00018166,2]
[378520879,1754893838767,-781.7476754,0.00018188,2]
[378520881,1754893838776,-231.28369723,0.00018194,2]
[378520883,1754893838787,-633.70392071,0.00018194,2]
[378520885,1754893838798,-269.0,0.00018206,2]
[378520887,1754893838807,-1680.0,0.00018228,2]
[378520889,1754893838816,-269.0,0.00018244,2]
[378520891,1754893838825,-269.0,0.00018245,2]
[378520893,1754893838835,-269.0,0.00018245,2]
[378520895,1754893838844,-300.0,0.00018259,2]
[378520897,1754893838854,-250.0,0.00018259,2]
[378520899,1754893838863,-2500.0,0.00018259,2]
[378520901,1754893838874,-1000.0,0.00018259,5]
[378520903,1754893838884,-300.0,0.00018259,2]
[378520905,1754893838893,-1503.65650653,0.00018298,2]
[378520907,1754893838902,-251.6432,0.00018304,2]
[378520909,1754893838912,-2470.94163794,0.00018309,2]
[378520911,1754893838921,-269.0,0.0001832,2]
[378520913,1754893838931,-269.0,0.00018333,2]
[378520915,1754893838940,-2100.3,0.00018396,2]
[378520917,1754893838950,-301.19,0.00018421,2]
[378520919,1754893838960,-237.56325944,0.00018522,2]
[378520921,1754893838970,-600.0,0.00018522,2]
[378520923,1754893838980,-160.0,0.00018522,2]
[378520925,1754893838990,-1199.20597015,0.00018522,2]
[378520927,1754893838999,-346.92554585,0.00018522,2]
[378520929,1754893839009,-269.0,0.00018533,2]
[378520931,1754893839019,-781.7476754,0.0001859,2]
[378520933,1754893839028,-2000.0,0.00018616,2]
[378520935,1754893839038,-2000.0,0.00018616,2]
[378520937,1754893839047,-311.45614637,0.0001862,2]
[378520939,1754893839058,-269.0,0.00018631,2]
[378520941,1754893839067,-985.0,0.00018636,2]
[378520943,1754893839077,-269.0,0.00018653,2]
[378520945,1754893839086,-15836.66,0.00018659,2]
[378520947,1754893839096,-250.0,0.00018682,2]
[378520949,1754893839106,-250.0,0.00018699,2]
[378520951,1754893839117,-1000.0,0.000187,5]
[378520953,1754893839127,-781.7476754,0.00018798,2]
[378520955,1754893839137,-547.0838,0.000188,2]
[378520957,1754893839147,-151.99,0.000188,2]
[378520959,1754893839157,-151.99,0.000188,2]
[378520960,1754893839167,-151.99,0.000188,2]
[378520962,1754893839177,-151.99,0.000188,2]
[378520964,1754893839186,-151.99,0.000188,2]
[378520966,1754893839196,-151.99,0.000188,2]
[378520969,1754893839209,-151.99,0.000188,2]
[378520971,1754893839219,-151.99,0.000188,2]
[378520973,1754893839229,-151.99,0.000188,2]
[378520975,1754893839239,-151.99,0.000188,2]
[378520977,1754893839250,-151.99,0.000188,2]
[378520979,1754893839261,-151.99,0.000188,2]
[378520981,1754893839271,-151.99,0.000188,2]
[378520983,1754893839281,-151.99,0.000188,2]
[378520985,1754893839291,-151.99,0.000188,2]
[378520987,1754893839302,-151.99,0.000188,2]
[378520989,1754893839311,-151.99,0.000188,2]
[378520991,1754893839323,-151.99,0.000188,2]
[378520993,1754893839334,-151.99,0.000188,2]
[378520995,1754893839345,-151.99,0.000188,2]
[378520997,1754893839356,-151.99,0.000188,2]
[378520999,1754893839367,-151.99,0.000188,2]
[378521003,1754893839377,-151.99,0.000188,2]
[378521005,1754893839387,-151.99,0.000188,2]
[378521009,1754893839397,-151.99,0.000188,2]
[378521011,1754893839407,-151.99,0.000188,2]
[378521014,1754893839416,-151.99,0.000188,2]
[378521016,1754893839426,-151.99,0.000188,2]
[378521018,1754893839435,-151.99,0.000188,2]
[378521020,1754893839444,-151.99,0.000188,2]
[378521022,1754893839454,-151.99,0.000188,2]
[378521024,1754893839464,-151.99,0.000188,2]
[378521026,1754893839473,-151.99,0.000188,2]
[378521028,1754893839487,-151.99,0.000188,2]
[378521030,1754893839497,-151.99,0.000188,2]
[378521032,1754893839507,-151.99,0.000188,2]
[378521034,1754893839517,-151.99,0.000188,2]
[378521036,1754893839527,-151.99,0.000188,2]
[378521037,1754893839537,-151.99,0.000188,2]
[378521038,1754893839547,-151.99,0.000188,2]
[378521039,1754893839556,-151.99,0.000188,2]
[378521040,1754893839566,-151.99,0.000188,2]
[378521041,1754893839576,-151.99,0.000188,2]
[378521042,1754893839585,-151.99,0.000188,2]
[378521043,1754893839595,-151.99,0.000188,2]
[378521044,1754893839607,-151.99,0.000188,2]
[378521045,1754893839620,-151.99,0.000188,2]
[378521046,1754893839630,-151.99,0.000188,2]
[378521047,1754893839640,-151.99,0.000188,2]
[378521048,1754893839650,-151.99,0.000188,2]
[378521049,1754893839660,-151.99,0.000188,2]
[378521050,1754893839670,-151.99,0.000188,2]
[378521051,1754893839681,-151.99,0.000188,2]
[378521052,1754893839691,-151.99,0.000188,2]
[378521053,1754893839700,-151.99,0.000188,2]
[378521054,1754893839715,-151.99,0.000188,2]
[378521055,1754893839725,-269.0,0.00018821,2]
[378521056,1754893839735,-269.0,0.00018899,2]
[378521057,1754893839747,-300.0,0.00018899,2]
[378521059,1754893839757,-940.0966,0.00018899,2]
[378521061,1754893839770,-300.0,0.00018899,2]
[378521062,1754893839780,-38220.30702028,0.000189,3]
[378521063,1754893839791,-457.87080987,0.000189,3]
[378521064,1754893839801,-26741.53007167,0.000189,2]
[378521065,1754893839811,-211.73953792,0.000189,3]
[378521066,1754893839821,-781.7476754,0.00018906,2]
[378521067,1754893839831,-1036.39297418,0.00018944,2]
[378521068,1754893839841,-1036.39297418,0.00018945,2]
[378521069,1754893839851,-171759.6042478,0.00018945,2]
[378521070,1754893839861,-1036.39297418,0.00018946,2]
[378521071,1754893839873,-15435.01215808,0.00018947,2]
[378521072,1754893839883,-16402.05413045,0.00018948,2]
[378521073,1754893839892,-687.9,0.00018948,2]
[378521074,1754893839903,-7206.22754207,0.00018949,2]
[378521075,1754893839912,-7206.22754207,0.0001895,2]
[378521077,1754893839922,-171759.6042478,0.00018951,2]
[378521078,1754893839932,-42939.90106197,0.00018954,2]
[378521079,1754893839943,-15435.01215808,0.00018955,2]
[378521080,1754893839953,-7206.22754207,0.00018956,2]
[378521081,1754893839963,-171759.6042478,0.00018956,2]
[378521082,1754893839974,-42939.90106197,0.00018957,2]
[378521083,1754893839984,-56593.95908865,0.00018957,2]
[378521084,1754893839994,-7206.22754207,0.00018957,2]
[378521085,1754893840004,-16402.05413045,0.00018958,2]
[378521087,1754893840014,-15435.01215808,0.00018961,2]
[378521088,1754893840024,-42939.90106197,0.00018964,2]
[378521090,1754893840034,-319.31284898,0.00018966,2]
[378521091,1754893840044,-171759.6042478,0.00018967,2]
[378521092,1754893840054,-15435.01215808,0.00018968,2]
[378521093,1754893840064,-16402.05413045,0.00018973,2]
[378521094,1754893840074,-15435.01215808,0.00018974,2]
[378521095,1754893840084,-42939.90106197,0.00018974,2]
[378521096,1754893840094,-1036.39297418,0.00018978,2]
[378521097,1754893840104,-56593.95908865,0.0001898,2]
[378521098,1754893840114,-16402.05413045,0.00018982,2]
[378521099,1754893840124,-1036.39297418,0.00018983,2]
[378521100,1754893840135,-56593.95908865,0.00018984,2]
[378521101,1754893840146,-7206.22754207,0.00018985,2]
[378521102,1754893840156,-171759.6042478,0.00018986,2]
[378521103,1754893840166,-42939.90106197,0.00018989,2]
[378521104,1754893840176,-56593.95908865,0.00018994,2]
[378521105,1754893840186,-16402.05413045,0.00018996,2]
[378521106,1754893840196,-56593.95908865,0.00018997,2]
[378521107,1754893840206,-1000.0,0.00018999,2]
[378521108,1754893840215,-1000.0,0.00018999,2]
[378521109,1754893840225,-1000.0,0.00018999,2]
[378521110,1754893840235,-13150.70528161,0.00019,2]
[378521111,1754893840245,-2212.47978181,0.00019,2]
[378521112,1754893840256,-3002.79,0.00019,2]
[378521113,1754893840267,-3000.0,0.00019,2]
[378521114,1754893840276,-3000.0,0.00019,2]
[378521115,1754893840286,-737.19,0.00019,2]
[378521116,1754893840297,-5059.94382972,0.00019,2]
[378521117,1754893840306,-3156.42,0.00019,2]
[378521118,1754893840318,-466.44289181,0.00019032,2]
[378521119,1754893840329,-1000.0,0.00019039,2]
[378521120,1754893840339,-269.0,0.0001912,2]
[378521121,1754893840349,-640.29567858,0.00019164,2]
[378521122,1754893840359,-2500.0,0.00019164,2]
[378521123,1754893840370,-2566.20990029,0.0001917,2]
[378521124,1754893840380,-500.0,0.00019178,2]
[378521125,1754893840390,-621.80459638,0.00019178,2]
[378521126,1754893840400,-2368.52,0.00019178,2]
[378521127,1754893840410,-781.7476754,0.00019198,2]
[378521128,1754893840419,-269.0,0.00019218,2]
[378521129,1754893840429,-269.0,0.0001924,2]
[378521130,1754893840439,-269.0,0.00019246,2]
[378521131,1754893840449,-1003.90075651,0.0001925,2]
[378521132,1754893840458,-300.0,0.00019259,2]
[378521133,1754893840468,-300.0,0.00019259,2]
[378521134,1754893840478,-480491.8419653,0.0001926,2]
[378521135,1754893840487,-520.30856992,0.00019273,2]
[378521136,1754893840497,-502.79054434,0.00019273,2]
[378521137,1754893840507,-500.0,0.00019273,2]
[378521138,1754893840517,-503.72508156,0.00019273,2]
[378521139,1754893840527,-164.69197131,0.00019273,2]
[378521140,1754893840537,-501.20075947,0.00019273,2]
[378521141,1754893840547,-500.0,0.00019273,2]
[378521142,1754893840557,-269.0,0.00019303,2]
[378521143,1754893840566,-269.0,0.00019331,2]
[378521144,1754893840576,-300.0,0.00019338,2]
[378521145,1754893840585,-7781.66,0.00019339,2]
[378521146,1754893840595,-999.99,0.00019339,2]
[378521147,1754893840605,-299.99,0.00019339,7]
[378521148,1754893840617,-9999.99,0.00019339,2]
[378521149,1754893840627,-4881.69,0.00019339,2]
[378521150,1754893840637,-1507.71,0.00019339,2]
[378521151,1754893840647,-9999.99,0.00019339,2]
[378521152,1754893840657,-3668.24,0.00019339,2]
[378521153,1754893840667,-8253.99,0.00019339,2]
[378521154,1754893840677,-150.99,0.00019339,2]
[378521155,1754893840687,-1015.34484348,0.000194,2]
[378521156,1754893840697,-2100.3,0.00019488,2]
[378521157,1754893840711,-214.69318673,0.00019507,3]
[378521158,1754893840721,-781.74767541,0.00019528,2]
[378521159,1754893840731,-239.84119403,0.00019563,2]
[378521160,1754893840741,-300.0,0.00019619,2]
[378521161,1754893840752,-109224.28788625,0.0001962,2]
[378521162,1754893840762,-269.0,0.00019634,2]
[378521163,1754893840772,-269.0,0.00019697,2]
[378521164,1754893840783,-269.0,0.00019705,2]
[378521165,1754893840793,-401.43168645,0.00019712,2]
[378521166,1754893840802,-687.9,0.00019772,2]
[378521167,1754893840813,-151.0,0.00019813,2]
[378521168,1754893840822,-251.0066552,0.00019813,2]
[378521169,1754893840832,-1146.8321709,0.00019813,2]
[378521170,1754893840842,-1216.0,0.00019813,2]
[378521171,1754893840852,-1216.0,0.00019813,2]
[378521172,1754893840862,-153.6710196,0.00019813,2]
[378521173,1754893840874,-872.37604,0.00019813,2]
[378521174,1754893840884,-151.0,0.00019813,2]
[378521175,1754893840894,-587.0,0.00019818,2]
[378521176,1754893840903,-501.64333405,0.00019821,2]
[378521177,1754893840913,-1000.0,0.00019821,2]
[378521178,1754893840923,-3092.73932727,0.00019824,2]
[378521179,1754893840932,-1000.0,0.0001985,2]
[378521180,1754893840942,-181.909,0.00019851,2]
[378521181,1754893840953,-194.357,0.00019851,2]
[378521182,1754893841372,-195.28,0.00019851,2]
[378521183,1754893841399,-196.672,0.00019851,2]
[378521184,1754893841409,-202.399,0.00019851,2]
[378521185,1754893841418,-295.818,0.00019851,2]
[378521186,1754893841427,-253.434,0.00019851,2]
[378521187,1754893841438,-249.618,0.00019851,2]
[378521188,1754893841447,-150.302,0.00019851,2]
[378521189,1754893841457,-150.0,0.00019851,2]
[378521190,1754893841466,-159.686,0.00019851,2]
[378521191,1754893841476,-153.0,0.00019851,2]
[378521192,1754893841486,-154.0,0.00019851,2]
[378521193,1754893841496,-219.56,0.00019863,2]
[378521194,1754893841506,-160.0,0.00019891,2]
[378521195,1754893841516,-1243.57659104,0.00019891,2]
[378521196,1754893841525,-359.76179104,0.00019891,2]
[378521197,1754893841535,-1295.0,0.00019932,2]
[378521198,1754893841544,-565.0,0.00019932,2]
[378521199,1754893841554,-2027.0,0.00019932,2]
[378521200,1754893841563,-958.0,0.00019932,2]
[378521201,1754893841573,-1654.0,0.00019932,2]
[378521202,1754893841583,-1171.0,0.00019932,2]
[378521203,1754893841593,-906.806,0.00019932,2]
[378521204,1754893841602,-3301.683,0.00019932,2]
[378521205,1754893841612,-3491.858,0.00019932,2]
[378521206,1754893841623,-822.0,0.00019932,2]
[378521207,1754893841632,-957.0,0.00019932,2]
[378521208,1754893841641,-514.0,0.0001997,2]
[378521209,1754893841651,-314.29783855,0.00019984,2]
[378521210,1754893841660,-43906.5372663,0.00019985,2]
[378521211,1754893841669,-2556.07340353,0.0002,2]
[378521212,1754893841679,-5762.6829312,0.0002,10]
[378521213,1754893841688,-74455.62678584,0.0002,2]
[378521214,1754893841698,-25074.42593459,0.0002,2]
[378521215,1754893841713,-5730.62329591,0.0002,2]
[378521216,1754893841723,-1268.56885881,0.0002,2]
[378521217,1754893841732,-3145.25212706,0.0002,2]
[378521218,1754893841741,-7140.97052184,0.0002,5]
[378521219,1754893841751,-1023.78635244,0.0002,2]
[378521220,1754893841761,-1488.48829104,0.0002,2]
[378521221,1754893841771,-90172.7460166,0.0002,2]
[378521222,1754893841781,-48508.4677665,0.0002,2]
[378521223,1754893841791,-746.79028632,0.0002,2]
[378521224,1754893841801,-4000.0,0.0002,4]
[378521225,1754893841811,-872.37604,0.0002001,2]
[378521226,1754893841820,-5021.72018444,0.0002001,2]
[378521227,1754893841829,-5772.0,0.0002001,2]
[378521228,1754893841839,-2351.0,0.00020016,2]
[378521229,1754893841849,-211.73953792,0.0002004,2]
[378521230,1754893841859,-457.87080987,0.0002004,2]
[378521231,1754893841869,-842.86497659,0.0002004,2]
[378521232,1754893841878,-160.0,0.0002004,2]
[378521233,1754893841888,-25000.0,0.00020042,2]
[378521234,1754893841898,-200.0,0.00020065,2]
[378521235,1754893841907,-4433.38,0.00020079,2]
[378521236,1754893841917,-693.67,0.00020082,2]
[378521237,1754893841927,-5000.0,0.0002012,2]
[378521238,1754893841937,-5000.0,0.00020147,2]
[378521239,1754893841946,-167.07,0.00020157,2]
[378521240,1754893841960,-167.07,0.00020167,2]
[378521241,1754893841970,-5000.0,0.00020174,2]
[378521242,1754893841980,-167.07,0.00020178,2]
[378521243,1754893841990,-274.98,0.00020187,2]
[378521244,1754893842000,-167.07,0.00020189,2]
[378521245,1754893842010,-273.33,0.00020192,2]
[378521246,1754893842020,-167.07,0.00020199,2]
[378521247,1754893842030,-150.01,0.000202,2]
[378521248,1754893842040,-167.07,0.0002021,2]
[378521249,1754893842050,-964.98,0.0002022,2]
[378521250,1754893842060,-167.07,0.0002022,2]
[378521251,1754893842071,-600.0,0.00020223,2]
[378521252,1754893842081,-546.22,0.00020223,2]
[378521253,1754893842091,-167.07,0.00020231,2]
[378521254,1754893842101,-167.07,0.00020242,2]
[378521255,1754893842112,-167.07,0.00020252,2]
[378521256,1754893842122,-167.07,0.00020263,2]
[378521257,1754893842132,-167.07,0.00020273,2]
[378521258,1754893842142,-167.07,0.00020284,2]
[378521259,1754893842152,-167.07,0.00020295,2]
[378521260,1754893842162,-25000.0,0.000203,2]
[378521261,1754893842172,-167.07,0.00020305,2]
[378521262,1754893842181,-2270.87,0.0002031,2]
[378521263,1754893842191,-167.07,0.00020316,2]
[378521264,1754893842201,-2500.77,0.00020317,2]
[378521265,1754893842211,-167.07,0.00020326,2]
[378521266,1754893842221,-167.07,0.00020337,2]
[378521267,1754893842230,-222.68,0.00020341,2]
[378521268,1754893842240,-167.07,0.00020348,2]
[378521269,1754893842250,-5000.0,0.00020356,2]
[378521270,1754893842260,-167.07,0.00020358,2]
[378521271,1754893842269,-5000.0,0.00020363,2]
[378521272,1754893842280,-713.15918531,0.00020368,2]
[378521273,1754893842290,-1000.0,0.00020394,2]
[378521274,1754893842301,-5000.0,0.00020394,2]
[378521275,1754893842311,-5000.0,0.00020415,2]
[378521276,1754893842322,-5000.0,0.00020425,2]
[378521277,1754893842332,-6099.64702592,0.00020429,7]
[378521278,1754893842342,-452.99999901,0.000205,2]
[378521279,1754893842352,-872.37605,0.0002051,2]
[378521280,1754893842361,-25000.0,0.00020511,2]
[378521281,1754893842372,-209.57,0.00020521,2]
[378521282,1754893842382,-700.0,0.00020552,2]
[378521283,1754893842391,-700.0,0.00020552,2]
[378521284,1754893842402,-444.20033086,0.00020552,2]
[378521285,1754893842412,-700.0,0.00020552,2]
[378521286,1754893842421,-700.0,0.00020552,2]
[378521288,1754893842432,-700.0,0.00020552,2]
[378521289,1754893842441,-700.0,0.00020552,2]
[378521291,1754893842451,-700.0,0.00020552,2]
[378521293,1754893842460,-700.0,0.00020552,2]
[378521294,1754893842470,-700.0,0.00020552,2]
[378521295,1754893842482,-700.0,0.00020552,2]
[378521296,1754893842496,-1313.77,0.00020561,2]
[378521297,1754893842507,-150.0,0.00020567,2]
[378521298,1754893842518,-500.0,0.00020578,2]
[378521299,1754893842527,-500.0,0.00020578,2]
[378521300,1754893842538,-500.15179162,0.00020578,2]
[378521301,1754893842558,-500.0,0.00020578,2]
[378521302,1754893842569,-500.0,0.00020578,2]
[378521303,1754893842579,-500.0,0.00020578,2]
[378521304,1754893842590,-500.0,0.00020578,2]
[378521305,1754893842600,-502.25756683,0.00020578,2]
[378521306,1754893842611,-500.61272097,0.00020578,2]
[378521307,1754893842622,-500.0,0.00020578,2]
[378521308,1754893842632,-2100.3,0.0002058,2]
[378521309,1754893842643,-2500.77,0.00020593,2]
[378521310,1754893842654,-107212.2216477,0.00020612,2]
[378521311,1754893842664,-700.0,0.00020617,2]
[378521312,1754893842674,-700.0,0.00020617,2]
[378521313,1754893842684,-700.0,0.00020617,2]
[378521314,1754893842695,-700.0,0.00020617,2]
[378521315,1754893842709,-700.0,0.00020617,2]
[378521316,1754893842719,-700.0,0.00020617,2]
[378521317,1754893842731,-700.0,0.00020617,2]
[378521318,1754893842741,-700.0,0.00020617,2]
[378521319,1754893842753,-2368.52,0.0002062,2]
[378521320,1754893842764,-500.0,0.00020627,2]
[378521321,1754893842775,-9253.5,0.00020644,2]
[378521322,1754893842787,-150.0,0.00020645,2]
[378521323,1754893842798,-22175.65242192,0.000207,2]
[378521324,1754893842808,-250.0,0.000207,2]
[378521325,1754893842819,-4055.0,0.000208,2]
[378521326,1754893842829,-5000.0,0.00020823,2]
[378521327,1754893842840,-3266.0481347,0.00020853,2]
[378521328,1754893842850,-5000.0,0.00020862,2]
[378521329,1754893842860,-5000.0,0.00020898,2]
[378521330,1754893842871,-4279.4,0.000209,2]
[378521331,1754893842881,-4279.4,0.000209,2]
[378521332,1754893842891,-150.0,0.000209,2]
[378521333,1754893842901,-325.37,0.00020902,2]
[378521334,1754893842911,-23922.2801861,0.00020914,2]
[378521335,1754893842922,-248.71531821,0.00020932,2]
[378521336,1754893842933,-5000.0,0.00020941,2]
[378521337,1754893842943,-150.0,0.00020951,2]
[378521338,1754893842953,-2468.26,0.00020975,2]
[378521340,1754893842964,-1018.85,0.00020997,2]
[378521343,1754893842974,-1000.0,0.00020999,2]
[378521347,1754893842984,-20000.0,0.00021,2]
[378521349,1754893842994,-1167.8287387,0.00021,2]
[378521351,1754893843003,-192.74733276,0.00021,2]
[378521353,1754893843014,-282.90557,0.00021,30]
[378521355,1754893843024,-282.90557,0.00021,30]
[378521358,1754893843034,-282.90557,0.00021,30]
[378521359,1754893843047,-282.90557,0.00021,30]
[378521360,1754893843057,-282.90558,0.00021,30]
[378521361,1754893843067,-5000.0,0.00021002,2]
[378521362,1754893843077,-872.37604,0.0002101,2]
[378521363,1754893843087,-1818.9,0.00021058,2]
[378521364,1754893843097,-5000.0,0.0002106,2]
[378521365,1754893843107,-5000.0,0.00021069,2]
[378521366,1754893843117,-25000.0,0.00021074,2]
[378521367,1754893843126,-5000.0,0.00021075,2]
[378521369,1754893843136,-199.41,0.00021076,2]
[378521371,1754893843146,-5000.0,0.00021092,2]
[378521373,1754893843156,-417.0,0.000211,2]
[378521374,1754893843166,-25000.0,0.00021108,2]
[378521375,1754893843176,-167.40905843,0.0002111,2]
[378521376,1754893843186,-500.94936456,0.00021126,2]
[378521377,1754893843196,-639.16169409,0.00021126,2]
[378521378,1754893843207,-513.87382947,0.00021126,2]
[378521379,1754893843217,-530.09559838,0.00021126,2]
[378521380,1754893843227,-1000.0,0.00021126,2]
[378521381,1754893843237,-1000.0,0.00021126,2]
[378521382,1754893843247,-500.40590492,0.00021126,2]
[378521383,1754893843257,-5000.0,0.00021129,2]
[378521384,1754893843268,-600.0,0.00021142,2]
[378521385,1754893843279,-546.22,0.00021142,2]
[378521386,1754893843291,-167.0,0.00021151,4]
[378521387,1754893843301,-2362.34,0.00021167,2]
[378521388,1754893843311,-25000.0,0.0002118,2]
[378521389,1754893843321,-5000.0,0.00021235,2]
[378521390,1754893843331,-160.0,0.0002126,2]
[378521391,1754893843341,-1289.58892491,0.0002126,2]
[378521392,1754893843353,-373.07297731,0.0002126,2]
[378521393,1754893843363,-179.90553086,0.00021298,2]
[378521394,1754893843374,-4279.4,0.000213,2]
[378521395,1754893843384,-672.18,0.00021322,2]
[378521396,1754893843394,-2432.8,0.00021341,2]
[378521397,1754893843404,-6223.21,0.0002137,2]
[378521398,1754893843414,-2094.83,0.00021381,2]
[378521399,1754893843424,-2090.88,0.00021399,2]
[378521400,1754893843434,-5511.0,0.000214,3]
[378521401,1754893843443,-1000.0,0.00021419,2]
[378521402,1754893843453,-5000.0,0.0002146,2]
[378521403,1754893843463,-5000.0,0.00021461,2]
[378521404,1754893843473,-5000.0,0.00021465,2]
[378521405,1754893843483,-2787.74,0.0002147,2]
[378521406,1754893843493,-5000.0,0.00021499,2]
[378521407,1754893843503,-217.29201925,0.000215,2]
[378521408,1754893843512,-5000.0,0.00021505,2]
[378521409,1754893843522,-872.37604,0.0002151,2]
[378521410,1754893843532,-175.74,0.00021558,2]
[378521411,1754893843542,-300.0,0.0002158,2]
[378521412,1754893843552,-904.99,0.00021598,2]
[378521413,1754893843561,-12787.49881801,0.000216,2]
[378521414,1754893843574,-5000.0,0.00021608,2]
[378521415,1754893843583,-5000.0,0.00021635,2]
[378521416,1754893843594,-823.0,0.00021654,2]
[378521417,1754893843604,-17399.19,0.00021666,2]
[378521418,1754893843620,-2100.3,0.00021673,2]
[378521419,1754893843636,-2443.27,0.00021673,2]
[378521420,1754893843647,-762.50266895,0.00021674,2]
[378521421,1754893843656,-1001.21106485,0.00021674,2]
[378521422,1754893843667,-5000.0,0.00021684,2]
[378521423,1754893843677,-1000.0,0.0002169,2]
[378521424,1754893843686,-222.68,0.00021711,2]
[378521425,1754893843696,-600.0,0.00021735,2]
[378521426,1754893843710,-204.41,0.00021735,2]
[378521427,1754893843720,-325.37,0.00021796,2]
[378521428,1754893843730,-5000.0,0.00021845,2]
[378521429,1754893843740,-272.90609459,0.00021849,2]
[378521430,1754893843751,-228.34,0.00021855,2]
[378521431,1754893843761,-1000.0,0.00021899,2]
[378521432,1754893843771,-4279.4,0.000219,2]
[378521433,1754893843783,-5511.0,0.000219,5]
[378521434,1754893843793,-1845.17,0.00021904,2]
[378521435,1754893843803,-5000.0,0.00021918,2]
[378521436,1754893843813,-666.0,0.00021918,3]
[378521437,1754893843823,-153.0,0.00021918,2]
[378521438,1754893843833,-153.0,0.00021918,2]
[378521439,1754893843843,-153.0,0.00021918,2]
[378521440,1754893843853,-153.0,0.00021918,2]
[378521441,1754893843863,-153.0,0.00021918,2]
[378521442,1754893843873,-153.0,0.00021918,2]
[378521443,1754893843883,-153.0,0.00021918,2]
[378521444,1754893843893,-153.0,0.00021918,2]
[378521445,1754893843903,-153.0,0.00021918,2]
[378521446,1754893843913,-156.83900383,0.00021918,2]
[378521447,1754893844102,-160.16469942,0.00021918,2]
[378521448,1754893844112,-158.0,0.00021918,2]
[378521449,1754893844124,-159.7057082,0.00021918,2]
[378521450,1754893844135,-153.0,0.00021918,2]
[378521451,1754893844148,-153.0,0.00021918,2]
[378521452,1754893844159,-153.0,0.00021918,2]
[378521453,1754893844168,-153.0,0.00021918,2]
[378521454,1754893844178,-153.0,0.00021918,2]
[378521455,1754893844188,-153.0,0.00021918,2]
[378521456,1754893844198,-159.75152102,0.00021918,2]
[378521457,1754893844209,-153.0,0.00021918,2]
[378521458,1754893844219,-153.0,0.00021918,2]